[Event "Open NK Rapid 2025"]
[Site "Helmond, Netherlands"]
[Date "2025.05.03"]
[Round "3.11"]
[White "Stolwijk, Colin"]
[Black "Apon, Iwahn"]
[Result "0-1"]
[TimeControl "15+5"]
[WhiteFideId "1033743"]
[BlackFideId "1056115"]
[WhiteElo "2286"]
[BlackElo "1987"]

1. e4 {[%clk 00:14:46]} {[%emt 00:00:23]} c5 {[%clk 00:15:04]} {[%emt
00:00:06]} 2. Nf3 {[%clk 00:14:50]} {[%emt 00:00:01]} d6 {[%clk 00:15:07]}
{[%emt 00:00:03]} 3. Bb5+ {[%clk 00:14:53]} {[%emt 00:00:02]} Nd7 {[%clk
00:15:07]} {[%emt 00:00:04]} 4. d4 {[%clk 00:14:55]} {[%emt 00:00:03]} cxd4
{[%clk 00:15:03]} {[%emt 00:00:10]} 5. Qxd4 {[%clk 00:14:57]} {[%emt 00:00:03]}
a6 {[%clk 00:14:32]} {[%emt 00:00:35]} 6. Be2 {[%clk 00:14:26]} {[%emt
00:00:36]} Ngf6 {[%clk 00:14:31]} {[%emt 00:00:06]} 7. c4 {[%clk 00:14:20]}
{[%emt 00:00:12]} g6 {[%clk 00:14:16]} {[%emt 00:00:20]} 8. Nc3 {[%clk
00:14:02]} {[%emt 00:00:23]} Bg7 {[%clk 00:14:18]} {[%emt 00:00:03]} 9. h3
{[%clk 00:12:57]} {[%emt 00:01:11]} O-O {[%clk 00:14:18]} {[%emt 00:00:04]} 10.
Qd3 {[%clk 00:12:20]} {[%emt 00:00:41]} Nc5 {[%clk 00:14:07]} {[%emt 00:00:16]}
11. Qc2 {[%clk 00:12:23]} {[%emt 00:00:02]} a5 {[%clk 00:14:10]} {[%emt
00:00:03]} 12. Be3 {[%clk 00:12:00]} {[%emt 00:00:27]} Bd7 {[%clk 00:13:12]}
{[%emt 00:01:03]} 13. e5 {[%clk 00:11:32]} {[%emt 00:00:33]} Bf5 {[%clk
00:12:51]} {[%emt 00:00:26]} 14. Qd1 {[%clk 00:11:28]} {[%emt 00:00:09]} Nfe4
{[%clk 00:11:39]} {[%emt 00:01:18]} 15. Nxe4 {[%clk 00:09:08]} {[%emt
00:02:25]} Bxe4 {[%clk 00:11:27]} {[%emt 00:00:16]} 16. exd6 {[%clk 00:09:01]}
{[%emt 00:00:12]} Qxd6 {[%clk 00:10:28]} {[%emt 00:01:05]} 17. Qxd6 {[%clk
00:07:47]} {[%emt 00:01:19]} exd6 {[%clk 00:10:30]} {[%emt 00:00:02]} 18. O-O-O
{[%clk 00:07:49]} {[%emt 00:00:04]} Rfd8 {[%clk 00:08:24]} {[%emt 00:02:11]} 19.
Rd2 {[%clk 00:07:13]} {[%emt 00:00:41]} Rac8 {[%clk 00:06:58]} {[%emt
00:01:30]} 20. Bd4 {[%clk 00:04:13]} {[%emt 00:03:05]} b5 {[%clk 00:05:25]}
{[%emt 00:01:39]} 21. Bxg7 {[%clk 00:04:12]} {[%emt 00:00:06]} Kxg7 {[%clk
00:05:29]} {[%emt 00:00:01]} 22. Kd1 {[%clk 00:02:57]} {[%emt 00:01:20]} bxc4
{[%clk 00:04:10]} {[%emt 00:01:23]} 23. Bxc4 {[%clk 00:03:00]} {[%emt
00:00:02]} d5 {[%clk 00:03:27]} {[%emt 00:00:49]} 24. Bb5 {[%clk 00:02:52]}
{[%emt 00:00:13]} Ne6 {[%clk 00:02:48]} {[%emt 00:00:43]} 25. Re1 {[%clk
00:02:02]} {[%emt 00:00:55]} Bxf3+ {[%clk 00:02:43]} {[%emt 00:00:11]} 26. gxf3
{[%clk 00:02:06]} {[%emt 00:00:02]} Rc5 {[%clk 00:02:37]} {[%emt 00:00:10]} 27.
Bd3 {[%clk 00:01:55]} {[%emt 00:00:16]} g5 {[%clk 00:02:24]} {[%emt 00:00:18]}
28. Re5 {[%clk 00:01:53]} {[%emt 00:00:06]} h6 {[%clk 00:02:05]} {[%emt
00:00:25]} 29. a3 {[%clk 00:01:54]} {[%emt 00:00:05]} Nf4 {[%clk 00:02:03]}
{[%emt 00:00:06]} 30. h4 {[%clk 00:01:35]} {[%emt 00:00:24]} Rdc8 {[%clk
00:02:03]} {[%emt 00:00:06]} 31. Bc2 {[%clk 00:01:38]} gxh4 {[%clk 00:01:52]}
{[%emt 00:00:16]} 32. Rf5 {[%clk 00:01:38]} {[%emt 00:00:05]} Ng6 {[%clk
00:01:47]} {[%emt 00:00:10]} 33. Rfxd5 {[%clk 00:01:31]} {[%emt 00:00:12]} h3
{[%clk 00:01:43]} {[%emt 00:00:09]} 34. Rxc5 {[%clk 00:00:51]} {[%emt
00:00:44]} Rxc5 {[%clk 00:01:47]} {[%emt 00:00:02]} 35. f4 {[%clk 00:00:55]} h2
{[%clk 00:01:18]} {[%emt 00:00:34]} 36. Be4 {[%clk 00:00:57]} {[%emt 00:00:02]}
Nxf4 {[%clk 00:01:10]} {[%emt 00:00:15]} 37. Bh1 {[%clk 00:00:38]} {[%emt
00:00:23]} Rg5 {[%clk 00:01:12]} {[%emt 00:00:03]} 38. Kc2 {[%clk 00:00:41]}
{[%emt 00:00:02]} Rg1 {[%clk 00:01:14]} {[%emt 00:00:03]} 39. Rd1 {[%clk
00:00:45]} {[%emt 00:00:01]} Nh3 {[%clk 00:01:11]} {[%emt 00:00:08]} 40. Bf3
{[%clk 00:00:30]} {[%emt 00:00:20]} Nxf2 {[%clk 00:01:12]} {[%emt 00:00:04]} 41.
Rd2 {[%clk 00:00:34]} h1=Q {[%clk 00:01:06]} {[%emt 00:00:11]} 42. Bxh1 {[%clk
00:00:38]} {[%emt 00:00:01]} Nxh1 {[%clk 00:01:09]} {[%emt 00:00:01]} 43. b4
{[%clk 00:00:41]} {[%emt 00:00:03]} axb4 {[%clk 00:01:13]} 44. axb4 {[%clk
00:00:45]} {[%emt 00:00:01]} Rg4 {[%clk 00:01:01]} {[%emt 00:00:17]} 45. Kb3
{[%clk 00:00:37]} {[%emt 00:00:13]} Ng3 {[%clk 00:01:04]} {[%emt 00:00:03]} 46.
b5 {[%clk 00:00:25]} {[%emt 00:00:16]} Ne4 {[%clk 00:01:06]} {[%emt 00:00:03]}
47. Rd5 {[%clk 00:00:22]} {[%emt 00:00:08]} Rg5 {[%clk 00:01:01]} {[%emt
00:00:10]} 48. Rd4 {[%clk 00:00:16]} {[%emt 00:00:10]} Rxb5+ {[%clk 00:00:54]}
{[%emt 00:00:13]} 49. Kc4 {[%clk 00:00:20]} Ra5 {[%clk 00:00:55]} {[%emt
00:00:03]} 50. Kd3 {[%clk 00:00:18]} {[%emt 00:00:08]} Nf6 {[%clk 00:00:58]}
{[%emt 00:00:03]} 51. Ke2 {[%clk 00:00:20]} {[%emt 00:00:02]} Ra3 {[%clk
00:01:01]} {[%emt 00:00:02]} 52. Kf2 {[%clk 00:00:22]} {[%emt 00:00:03]} h5
{[%clk 00:01:04]} {[%emt 00:00:02]} 53. Kg2 {[%clk 00:00:26]} {[%emt 00:00:01]}
Kg6 {[%clk 00:01:08]} 54. Rb4 {[%clk 00:00:30]} {[%emt 00:00:02]} Ng4 {[%clk
00:01:06]} {[%emt 00:00:07]} 55. Rb6+ {[%clk 00:00:29]} {[%emt 00:00:05]} Kg5
{[%clk 00:01:07]} {[%emt 00:00:04]} 56. Rb5+ {[%clk 00:00:33]} {[%emt
00:00:01]} f5 {[%clk 00:01:11]} {[%emt 00:00:02]} 57. Rc5 {[%clk 00:00:37]}
{[%emt 00:00:01]} h4 {[%clk 00:01:11]} {[%emt 00:00:04]} 58. Kh1 {[%clk
00:00:34]} {[%emt 00:00:07]} Ra2 {[%clk 00:01:12]} {[%emt 00:00:05]} 59. Rc4
{[%clk 00:00:30]} {[%emt 00:00:09]} h3 {[%clk 00:01:10]} {[%emt 00:00:07]} 60.
Rc1 {[%clk 00:00:34]} Rg2 {[%clk 00:00:59]} {[%emt 00:00:14]} 0-1

[Event "Open NK Rapid 2025"]
[Site "Helmond, Netherlands"]
[Date "2025.05.03"]
[Round "3.12"]
[White "Den Heijer, Rolinde"]
[Black "Kuipers-Haast, Anne"]
[Result "0-1"]
[TimeControl "15+5"]
[WhiteFideId "1068300"]
[BlackFideId "1017292"]
[WhiteElo "1991"]
[BlackElo "2272"]

1. e4 {[%clk 00:15:08]} c5 {[%clk 00:15:09]} {[%emt 00:00:02]} 2. Nf3 {[%clk
00:15:12]} e6 {[%clk 00:15:13]} {[%emt 00:00:02]} 3. d4 {[%clk 00:15:16]}
{[%emt 00:00:01]} cxd4 {[%clk 00:15:16]} {[%emt 00:00:02]} 4. Nxd4 {[%clk
00:15:19]} {[%emt 00:00:01]} Nc6 {[%clk 00:15:19]} {[%emt 00:00:02]} 5. Nc3
{[%clk 00:15:20]} {[%emt 00:00:04]} Qc7 {[%clk 00:15:23]} {[%emt 00:00:02]} 6.
Be3 {[%clk 00:15:19]} {[%emt 00:00:05]} a6 {[%clk 00:15:26]} {[%emt 00:00:02]}
7. Qd2 {[%clk 00:15:12]} {[%emt 00:00:12]} Nf6 {[%clk 00:15:27]} {[%emt
00:00:05]} 8. f4 {[%clk 00:15:10]} {[%emt 00:00:07]} Bb4 {[%clk 00:14:45]}
{[%emt 00:00:47]} 9. Bd3 {[%clk 00:15:07]} {[%emt 00:00:07]} d5 {[%clk
00:13:41]} {[%emt 00:01:09]} 10. e5 {[%clk 00:14:59]} {[%emt 00:00:13]} Ne4
{[%clk 00:13:18]} {[%emt 00:00:29]} 11. Bxe4 {[%clk 00:14:59]} {[%emt
00:00:05]} dxe4 {[%clk 00:13:22]} {[%emt 00:00:01]} 12. a3 {[%clk 00:14:53]}
{[%emt 00:00:11]} Bxc3 {[%clk 00:12:57]} {[%emt 00:00:30]} 13. Qxc3 {[%clk
00:14:47]} {[%emt 00:00:10]} Bd7 {[%clk 00:12:41]} {[%emt 00:00:22]} 14. O-O
{[%clk 00:13:30]} {[%emt 00:01:22]} Rc8 {[%clk 00:12:30]} {[%emt 00:00:16]} 15.
Rad1 {[%clk 00:12:08]} {[%emt 00:01:26]} Ne7 {[%clk 00:11:28]} {[%emt
00:01:08]} 16. Qe1 {[%clk 00:11:33]} {[%emt 00:00:40]} O-O {[%clk 00:10:35]}
{[%emt 00:00:58]} 17. Bc1 {[%clk 00:10:23]} {[%emt 00:01:15]} Bc6 {[%clk
00:10:07]} {[%emt 00:00:33]} 18. Nxc6 {[%clk 00:09:28]} {[%emt 00:00:59]} Qxc6
{[%clk 00:09:59]} {[%emt 00:00:14]} 19. c3 {[%clk 00:09:22]} {[%emt 00:00:11]}
Rcd8 {[%clk 00:09:51]} {[%emt 00:00:12]} 20. Qe2 {[%clk 00:08:47]} {[%emt
00:00:40]} Nf5 {[%clk 00:08:55]} {[%emt 00:01:02]} 21. Rfe1 {[%clk 00:07:58]}
{[%emt 00:00:53]} Rd5 {[%clk 00:08:11]} {[%emt 00:00:50]} 22. Be3 {[%clk
00:07:06]} {[%emt 00:00:56]} Rfd8 {[%clk 00:07:59]} {[%emt 00:00:17]} 23. Rxd5
{[%clk 00:04:54]} {[%emt 00:02:17]} exd5 {[%clk 00:07:44]} {[%emt 00:00:20]} 24.
Rd1 {[%clk 00:04:28]} {[%emt 00:00:32]} f6 {[%clk 00:07:07]} {[%emt 00:00:42]}
25. exf6 {[%clk 00:03:29]} {[%emt 00:01:03]} Qxf6 {[%clk 00:07:03]} {[%emt
00:00:10]} 26. Bf2 {[%clk 00:03:15]} {[%emt 00:00:18]} Qe6 {[%clk 00:04:18]}
{[%emt 00:02:50]} 27. Kh1 {[%clk 00:02:12]} {[%emt 00:01:09]} e3 {[%clk
00:03:44]} {[%emt 00:00:39]} 28. Bg1 {[%clk 00:01:13]} {[%emt 00:01:04]} Qe4
{[%clk 00:03:39]} {[%emt 00:00:10]} 29. Qg4 {[%clk 00:00:46]} {[%emt 00:00:31]}
Re8 {[%clk 00:03:17]} {[%emt 00:00:28]} 30. Re1 {[%clk 00:00:47]} {[%emt
00:00:03]} Qd3 {[%clk 00:01:59]} {[%emt 00:01:23]} 31. Qf3 {[%clk 00:00:39]}
{[%emt 00:00:14]} Re4 {[%clk 00:01:38]} {[%emt 00:00:26]} 32. Qh5 {[%clk
00:00:18]} {[%emt 00:00:25]} g6 {[%clk 00:01:39]} {[%emt 00:00:05]} 33. Qf3
{[%clk 00:00:22]} d4 {[%clk 00:01:17]} {[%emt 00:00:27]} 34. cxd4 {[%clk
00:00:24]} {[%emt 00:00:02]} Nxd4 {[%clk 00:01:21]} {[%emt 00:00:02]} 35. Qg4
{[%clk 00:00:24]} {[%emt 00:00:05]} Nf5 {[%clk 00:01:25]} {[%emt 00:00:01]} 36.
Qf3 {[%clk 00:00:21]} {[%emt 00:00:08]} Qc4 {[%clk 00:01:17]} {[%emt 00:00:13]}
37. Bxe3 {[%clk 00:00:16]} {[%emt 00:00:09]} Nxe3 {[%clk 00:01:16]} {[%emt
00:00:05]} 38. h3 {[%clk 00:00:11]} {[%emt 00:00:11]} Qd3 {[%clk 00:01:17]}
{[%emt 00:00:05]} 39. f5 {[%clk 00:00:11]} {[%emt 00:00:05]} gxf5 {[%clk
00:00:56]} {[%emt 00:00:25]} 40. Qh5 {[%clk 00:00:15]} {[%emt 00:00:01]} Re6
{[%clk 00:00:48]} {[%emt 00:00:13]} 41. Qg5+ {[%clk 00:00:15]} {[%emt
00:00:05]} Kf7 {[%clk 00:00:53]} 42. Qh4 {[%clk 00:00:17]} {[%emt 00:00:03]} h6
{[%clk 00:00:43]} {[%emt 00:00:15]} 43. Qh5+ {[%clk 00:00:20]} {[%emt
00:00:02]} Kg7 {[%clk 00:00:43]} {[%emt 00:00:05]} 44. Qh4 {[%clk 00:00:22]}
{[%emt 00:00:02]} Qe4 {[%clk 00:00:35]} {[%emt 00:00:13]} 45. Qg3+ {[%clk
00:00:25]} {[%emt 00:00:02]} Kf7 {[%clk 00:00:40]} {[%emt 00:00:01]} 46. Rc1
{[%clk 00:00:27]} {[%emt 00:00:02]} f4 {[%clk 00:00:30]} {[%emt 00:00:15]} 47.
Qf2 {[%clk 00:00:30]} {[%emt 00:00:03]} Nc4 {[%clk 00:00:33]} {[%emt 00:00:02]}
48. Rd1 {[%clk 00:00:26]} {[%emt 00:00:09]} Re7 {[%clk 00:00:32]} {[%emt
00:00:06]} 49. Rf1 {[%clk 00:00:25]} {[%emt 00:00:05]} f3 {[%clk 00:00:35]}
{[%emt 00:00:02]} 50. gxf3 {[%clk 00:00:25]} {[%emt 00:00:05]} Qf4 {[%clk
00:00:39]} {[%emt 00:00:02]} 51. Rg1 {[%clk 00:00:21]} {[%emt 00:00:09]} Ne3
{[%clk 00:00:42]} {[%emt 00:00:02]} 52. Qe2 {[%clk 00:00:16]} {[%emt 00:00:09]}
Nf5 {[%clk 00:00:45]} {[%emt 00:00:03]} 53. Qd3 {[%clk 00:00:15]} {[%emt
00:00:05]} Qe5 {[%clk 00:00:37]} {[%emt 00:00:13]} 54. Qc4+ {[%clk 00:00:19]}
{[%emt 00:00:02]} Qe6 {[%clk 00:00:40]} {[%emt 00:00:02]} 55. Qg4 {[%clk
00:00:22]} {[%emt 00:00:01]} Ke8 {[%clk 00:00:40]} {[%emt 00:00:06]} 56. Qh5+
{[%clk 00:00:24]} {[%emt 00:00:03]} Kd7 {[%clk 00:00:43]} {[%emt 00:00:02]} 57.
Rc1 {[%clk 00:00:21]} {[%emt 00:00:07]} Ng3+ {[%clk 00:00:44]} {[%emt
00:00:04]} 0-1

[Event "Open NK Rapid 2025"]
[Site "Helmond, Netherlands"]
[Date "2025.05.03"]
[Round "3.13"]
[White "Grochal, Joey"]
[Black "Landman, Renzo"]
[Result "1-0"]
[TimeControl "15+5"]
[WhiteFideId "1019945"]
[BlackFideId "40106306"]
[WhiteElo "2261"]
[BlackElo "1975"]

1. d4 {[%clk 00:15:07]} {[%emt 00:00:01]} d5 {[%clk 00:15:03]} {[%emt
00:00:08]} 2. c4 {[%clk 00:15:08]} {[%emt 00:00:04]} e6 {[%clk 00:15:04]}
{[%emt 00:00:03]} 3. Nc3 {[%clk 00:15:11]} {[%emt 00:00:03]} Nf6 {[%clk
00:15:06]} {[%emt 00:00:03]} 4. cxd5 {[%clk 00:15:15]} {[%emt 00:00:01]} exd5
{[%clk 00:15:09]} {[%emt 00:00:02]} 5. Bg5 {[%clk 00:15:18]} {[%emt 00:00:02]}
c6 {[%clk 00:15:11]} {[%emt 00:00:03]} 6. e3 {[%clk 00:15:18]} {[%emt
00:00:05]} Be6 {[%clk 00:14:59]} {[%emt 00:00:16]} 7. Bd3 {[%clk 00:15:18]}
{[%emt 00:00:05]} Nbd7 {[%clk 00:15:01]} {[%emt 00:00:03]} 8. Nge2 {[%clk
00:15:08]} {[%emt 00:00:15]} h6 {[%clk 00:15:03]} {[%emt 00:00:04]} 9. Bh4
{[%clk 00:15:12]} {[%emt 00:00:01]} g5 {[%clk 00:15:03]} {[%emt 00:00:05]} 10.
Bg3 {[%clk 00:15:15]} {[%emt 00:00:01]} Nh5 {[%clk 00:14:46]} {[%emt 00:00:22]}
11. f4 {[%clk 00:14:37]} {[%emt 00:00:44]} Nxg3 {[%clk 00:09:41]} {[%emt
00:05:10]} 12. Nxg3 {[%clk 00:14:37]} {[%emt 00:00:05]} gxf4 {[%clk 00:07:52]}
{[%emt 00:01:53]} 13. exf4 {[%clk 00:14:40]} {[%emt 00:00:02]} Nb6 {[%clk
00:07:11]} {[%emt 00:00:46]} 14. Qf3 {[%clk 00:12:18]} {[%emt 00:02:27]} Bg7
{[%clk 00:06:22]} {[%emt 00:00:53]} 15. Nce2 {[%clk 00:12:22]} {[%emt
00:00:02]} Nc4 {[%clk 00:05:21]} {[%emt 00:01:06]} 16. f5 {[%clk 00:12:04]}
{[%emt 00:00:23]} Qa5+ {[%clk 00:04:02]} {[%emt 00:01:25]} 17. Kf2 {[%clk
00:11:52]} {[%emt 00:00:17]} Bd7 {[%clk 00:03:26]} {[%emt 00:00:41]} 18. Nh5
{[%clk 00:11:07]} {[%emt 00:00:50]} Rg8 {[%clk 00:01:47]} {[%emt 00:01:44]} 19.
Bxc4 {[%clk 00:07:51]} {[%emt 00:03:21]} dxc4 {[%clk 00:01:45]} {[%emt
00:00:06]} 20. Qe3+ {[%clk 00:06:57]} {[%emt 00:01:00]} Kd8 {[%clk 00:01:27]}
{[%emt 00:00:23]} 21. g4 {[%clk 00:07:00]} {[%emt 00:00:02]} Re8 {[%clk
00:01:05]} {[%emt 00:00:27]} 22. Qc3 {[%clk 00:06:47]} {[%emt 00:00:17]} Qxc3
{[%clk 00:01:02]} {[%emt 00:00:08]} 23. bxc3 {[%clk 00:06:51]} {[%emt
00:00:02]} Bf8 {[%clk 00:01:02]} {[%emt 00:00:05]} 24. Nf6 {[%clk 00:06:07]}
{[%emt 00:00:48]} Re7 {[%clk 00:00:57]} {[%emt 00:00:11]} 25. Nf4 {[%clk
00:05:58]} {[%emt 00:00:14]} Bg7 {[%clk 00:00:29]} {[%emt 00:00:33]} 26. N6h5
{[%clk 00:06:00]} {[%emt 00:00:02]} Bf8 {[%clk 00:00:29]} {[%emt 00:00:06]} 27.
h3 {[%clk 00:05:33]} {[%emt 00:00:32]} Kc7 {[%clk 00:00:30]} {[%emt 00:00:03]}
28. d5 {[%clk 00:05:13]} {[%emt 00:00:25]} Re5 {[%clk 00:00:20]} {[%emt
00:00:14]} 29. Rad1 {[%clk 00:04:59]} {[%emt 00:00:20]} Bc5+ {[%clk 00:00:24]}
30. Kg2 {[%clk 00:04:57]} {[%emt 00:00:08]} Re3 {[%clk 00:00:24]} {[%emt
00:00:05]} 31. Rc1 {[%clk 00:04:07]} {[%emt 00:00:55]} Re5 {[%clk 00:00:27]}
{[%emt 00:00:01]} 32. Rhd1 {[%clk 00:03:51]} {[%emt 00:00:21]} cxd5 {[%clk
00:00:26]} {[%emt 00:00:07]} 33. Nxd5+ {[%clk 00:03:40]} {[%emt 00:00:15]} Kc8
{[%clk 00:00:28]} {[%emt 00:00:04]} 34. Kg3 {[%clk 00:03:29]} {[%emt 00:00:16]}
Bc6 {[%clk 00:00:30]} {[%emt 00:00:03]} 35. Nhf6 {[%clk 00:03:17]} {[%emt
00:00:17]} Re2 {[%clk 00:00:22]} {[%emt 00:00:13]} 36. Kh4 {[%clk 00:02:43]}
{[%emt 00:00:39]} Rxa2 {[%clk 00:00:16]} {[%emt 00:00:11]} 37. Kh5 {[%clk
00:02:41]} {[%emt 00:00:06]} Rh2 {[%clk 00:00:19]} {[%emt 00:00:02]} 38. Kxh6
{[%clk 00:02:20]} {[%emt 00:00:27]} Rxh3+ {[%clk 00:00:19]} {[%emt 00:00:04]}
39. Kg7 {[%clk 00:02:24]} {[%emt 00:00:01]} Be3 {[%clk 00:00:10]} {[%emt
00:00:15]} 40. Nxe3 {[%clk 00:01:59]} {[%emt 00:00:29]} Rxe3 {[%clk 00:00:14]}
{[%emt 00:00:02]} 41. Re1 {[%clk 00:01:55]} {[%emt 00:00:09]} Rg3 {[%clk
00:00:10]} {[%emt 00:00:09]} 42. Rg1 {[%clk 00:01:35]} {[%emt 00:00:25]} Rd3
{[%clk 00:00:10]} {[%emt 00:00:04]} 43. Kxf7 {[%clk 00:01:35]} {[%emt
00:00:06]} Kc7 {[%clk 00:00:11]} {[%emt 00:00:04]} 44. g5 {[%clk 00:01:34]}
{[%emt 00:00:06]} Bd5 {[%clk 00:00:09]} {[%emt 00:00:08]} 45. Kg7 {[%clk
00:01:22]} {[%emt 00:00:16]} Bc6 {[%clk 00:00:09]} {[%emt 00:00:06]} 46. g6
{[%clk 00:01:23]} {[%emt 00:00:03]} Rd6 {[%clk 00:00:11]} {[%emt 00:00:03]} 47.
Rcd1 {[%clk 00:01:14]} {[%emt 00:00:13]} Rad8 {[%clk 00:00:14]} {[%emt
00:00:02]} 48. Rxd6 {[%clk 00:01:17]} {[%emt 00:00:02]} Rxd6 {[%clk 00:00:18]}
{[%emt 00:00:02]} 49. Kf7 {[%clk 00:01:19]} {[%emt 00:00:03]} Bd5 {[%clk
00:00:08]} {[%emt 00:00:15]} 50. Nxd5+ {[%clk 00:01:22]} {[%emt 00:00:02]} Rxd5
{[%clk 00:00:12]} {[%emt 00:00:01]} 51. g7 {[%clk 00:01:25]} {[%emt 00:00:01]}
Rd7 {[%clk 00:00:16]} {[%emt 00:00:01]} 52. Ke6 {[%clk 00:01:28]} {[%emt
00:00:02]} Rd8 {[%clk 00:00:20]} {[%emt 00:00:02]} 53. g8=Q {[%clk 00:01:22]}
{[%emt 00:00:04]} 1-0

[Event "Open NK Rapid 2025"]
[Site "Helmond, Netherlands"]
[Date "2025.05.03"]
[Round "3.14"]
[White "Wolff, Christoph"]
[Black "Hilwerda, Jonas"]
[Result "0-1"]
[TimeControl "15+5"]
[WhiteFideId "4648706"]
[BlackFideId "1046713"]
[WhiteElo "1941"]
[BlackElo "2233"]

1. e4 {[%clk 00:15:09]} c5 {[%clk 00:15:09]} {[%emt 00:00:03]} 2. Nf3 {[%clk
00:15:12]} {[%emt 00:00:01]} Nc6 {[%clk 00:15:12]} {[%emt 00:00:02]} 3. Nc3
{[%clk 00:15:15]} {[%emt 00:00:02]} Nf6 {[%clk 00:15:11]} {[%emt 00:00:05]} 4.
d4 {[%clk 00:15:14]} {[%emt 00:00:06]} cxd4 {[%clk 00:15:15]} {[%emt 00:00:02]}
5. Nxd4 {[%clk 00:15:17]} {[%emt 00:00:02]} e5 {[%clk 00:15:19]} 6. Ndb5 {[%clk
00:15:15]} {[%emt 00:00:08]} d6 {[%clk 00:15:23]} 7. a4 {[%clk 00:15:15]}
{[%emt 00:00:04]} Bg4 {[%clk 00:15:24]} {[%emt 00:00:03]} 8. Be2 {[%clk
00:15:07]} {[%emt 00:00:13]} Bxe2 {[%clk 00:15:26]} {[%emt 00:00:04]} 9. Qxe2
{[%clk 00:15:10]} {[%emt 00:00:02]} Be7 {[%clk 00:15:00]} {[%emt 00:00:32]} 10.
Bg5 {[%clk 00:14:45]} {[%emt 00:00:29]} a6 {[%clk 00:14:42]} {[%emt 00:00:23]}
11. Bxf6 {[%clk 00:14:24]} {[%emt 00:00:26]} Bxf6 {[%clk 00:14:20]} {[%emt
00:00:27]} 12. Na3 {[%clk 00:14:20]} {[%emt 00:00:09]} Nd4 {[%clk 00:14:01]}
{[%emt 00:00:24]} 13. Qd3 {[%clk 00:13:46]} {[%emt 00:00:39]} O-O {[%clk
00:13:20]} {[%emt 00:00:46]} 14. O-O {[%clk 00:13:46]} {[%emt 00:00:04]} Qc8
{[%clk 00:12:26]} {[%emt 00:01:00]} 15. Nd5 {[%clk 00:12:52]} {[%emt 00:00:58]}
Bd8 {[%clk 00:12:29]} {[%emt 00:00:02]} 16. c3 {[%clk 00:12:30]} {[%emt
00:00:28]} Nb3 {[%clk 00:12:28]} {[%emt 00:00:06]} 17. Rad1 {[%clk 00:12:29]}
{[%emt 00:00:05]} Nc5 {[%clk 00:12:23]} {[%emt 00:00:11]} 18. Qc2 {[%clk
00:12:15]} {[%emt 00:00:18]} Qc6 {[%clk 00:12:04]} {[%emt 00:00:25]} 19. b3
{[%clk 00:12:05]} {[%emt 00:00:16]} Kh8 {[%clk 00:11:59]} {[%emt 00:00:09]} 20.
Nc4 {[%clk 00:11:40]} {[%emt 00:00:29]} b5 {[%clk 00:10:24]} {[%emt 00:01:42]}
21. axb5 {[%clk 00:11:05]} {[%emt 00:00:39]} axb5 {[%clk 00:10:28]} {[%emt
00:00:01]} 22. Nce3 {[%clk 00:11:01]} {[%emt 00:00:09]} Bg5 {[%clk 00:10:13]}
{[%emt 00:00:21]} 23. f3 {[%clk 00:10:08]} {[%emt 00:00:57]} Ra3 {[%clk
00:09:38]} {[%emt 00:00:40]} 24. b4 {[%clk 00:08:49]} {[%emt 00:01:23]} Na4
{[%clk 00:08:51]} {[%emt 00:00:52]} 25. Nf5 {[%clk 00:08:38]} {[%emt 00:00:16]}
Nxc3 {[%clk 00:08:28]} {[%emt 00:00:29]} 26. Rd3 {[%clk 00:07:49]} {[%emt
00:00:54]} Rc8 {[%clk 00:08:16]} {[%emt 00:00:17]} 27. Nfe7 {[%clk 00:07:25]}
{[%emt 00:00:29]} Bxe7 {[%clk 00:08:02]} {[%emt 00:00:19]} 28. Nxe7 {[%clk
00:07:28]} {[%emt 00:00:01]} Qb6+ {[%clk 00:07:16]} {[%emt 00:00:52]} 29. Kh1
{[%clk 00:07:27]} {[%emt 00:00:05]} Rc4 {[%clk 00:07:20]} {[%emt 00:00:02]} 30.
Qb2 {[%clk 00:06:56]} {[%emt 00:00:35]} Ra2 {[%clk 00:06:06]} {[%emt 00:01:20]}
31. Nd5 {[%clk 00:06:05]} {[%emt 00:00:55]} Qa7 {[%clk 00:05:40]} {[%emt
00:00:32]} 32. Qb3 {[%clk 00:04:52]} {[%emt 00:01:18]} Ra1 {[%clk 00:05:44]}
{[%emt 00:00:02]} 33. Ne3 {[%clk 00:04:08]} {[%emt 00:00:47]} Rxf1+ {[%clk
00:05:47]} {[%emt 00:00:03]} 34. Nxf1 {[%clk 00:04:12]} {[%emt 00:00:01]} Qf2
{[%clk 00:05:50]} {[%emt 00:00:02]} 35. Rd1 {[%clk 00:02:17]} {[%emt 00:02:00]}
Nxd1 {[%clk 00:05:54]} {[%emt 00:00:02]} 36. Qxd1 {[%clk 00:02:19]} {[%emt
00:00:02]} Rc2 {[%clk 00:05:58]} 0-1